bitfinex/quotes_ETHUSD_20241106
["timestamp","ask_amount","ask_price","bid_price","bid_amount"]
[1730926296676,0.04158062,2670.2,2669.6,0.52605484]
[1730926298476,0.09363905,2670.1,2669.3,0.7751]
[1730926298673,0.7508,2670.0,2669.3,0.52605484]
[1730926299024,0.09364985,2669.9,2669.3,0.52605484]
[1730926299326,0.13503216,2669.9,2669.3,0.52605484]
[1730926303996,0.09364373,2669.8,2669.3,0.52605484]
[1730926304330,0.1350692,2669.8,2669.3,0.52605484]
[1730926305193,0.8322,2669.7,2669.3,0.52605484]
[1730926305392,0.1349439,2669.6,2668.9,3.0]
[1730926305593,0.1349439,2669.6,2668.9,3.68129]
[1730926306344,0.1349439,2669.6,2668.9,3.0]
[1730926306562,0.1349439,2669.6,2668.9,3.52605484]
[1730926307237,0.1349439,2669.6,2669.0,0.52605484]
[1730926307445,0.1349439,2669.6,2668.8,3.52605484]
[1730926307446,0.7919,2669.5,2668.8,3.52605484]
[1730926307599,0.09367021,2669.4,2668.8,3.52605484]
[1730926307796,0.8121,2669.3,2668.8,3.52605484]
[1730926308030,0.8121,2669.1,2668.8,3.0]
[1730926308209,0.6033753,2669.0,2668.8,3.0]
[1730926308425,0.8121,2668.9,2668.8,3.0]
[1730926308630,0.85299579,2668.9,2668.8,3.0]
[1730926310351,0.85299579,2668.9,2668.8,6.0]
[1730926311125,0.04089579,2668.9,2668.8,6.0]
[1730926311331,0.04089579,2668.9,2668.8,6.6]
[1730926311527,0.90747683,2669.4,2668.9,3.0]
[1730926312004,0.0402775,2669.3,2668.9,3.0]
[1730926313170,0.09366475,2669.2,2668.9,3.0]
[1730926313446,0.04014521,2669.1,2668.9,3.0]
[1730926316458,0.09367468,2669.3,2668.9,3.0]
[1730926316676,0.04007906,2669.0,2668.9,3.0]
[1730926316824,0.09367468,2669.3,2669.0,0.7545]
[1730926317026,0.09366357,2669.5,2669.0,0.7545]
[1730926317963,0.09366357,2669.5,2668.9,3.6]
[1730926318322,0.09366357,2669.5,2668.9,3.67493079]
[1730926318522,0.91655995,2669.6,2669.0,0.66749308]
[1730926318764,0.91655995,2669.6,2669.0,1.19354792]
[1730926319370,0.0936596,2669.8,2669.1,0.765]
[1730926320431,0.762,2669.7,2668.9,3.0]
[1730926320627,0.09365849,2669.6,2669.0,0.07492679]
[1730926320859,0.09365849,2669.6,2669.0,0.73502495]
[1730926321667,0.09365849,2669.6,2669.0,0.66009816]
[1730926321847,0.09365849,2669.6,2668.9,3.52605484]
[1730926322248,0.09365849,2669.6,2668.9,3.0]
[1730926322453,2.3365331,2669.6,2668.9,3.0]
[1730926322663,0.755,2669.7,2669.0,0.52605484]
[1730926322869,0.09366294,2669.6,2669.0,0.52605484]
[1730926323057,0.09366294,2669.6,2669.1,0.35260548]
[1730926323767,0.09366294,2669.6,2669.0,0.52605484]
[1730926324128,0.09366294,2669.6,2669.0,0.60098066]
[1730926326270,0.04045077,2669.5,2669.1,0.7732]
[1730926326575,0.09365712,2669.8,2669.2,0.07491987]
[1730926326875,0.806,2669.9,2669.2,0.55]
[1730926327389,0.13429201,2669.8,2669.1,1.29925484]
[1730926327673,0.13429201,2669.8,2669.1,1.72918032]
[1730926329255,0.13429201,2669.8,2669.1,0.52605484]
[1730926329456,2.47137421,2669.8,2669.1,0.52605484]
[1730926329843,0.13429201,2669.8,2669.1,0.52605484]
[1730926331034,0.13429201,2669.8,2669.2,0.58567287]
[1730926331431,0.13429201,2669.8,2669.3,0.52605484]
[1730926331671,0.46202943,2669.8,2669.3,0.52605484]
[1730926331892,0.46202943,2669.8,2669.2,0.58567287]
[1730926332032,0.787,2669.7,2669.2,0.58567287]
[1730926332231,0.09366161,2669.6,2669.2,0.58567287]
[1730926332456,0.1343397,2669.6,2669.2,0.58567287]
[1730926333685,2.47087298,2669.6,2669.2,0.58567287]
[1730926333834,0.1343397,2669.6,2669.2,0.58567287]
[1730926334231,0.04067809,2669.6,2669.3,0.8087]
[1730926334482,6.91713028,2670.3,2669.3,0.8087]
[1730926334483,3.12353328,2670.2,2669.5,0.55]
[1730926334772,0.03974528,2670.1,2669.7,0.8087]
[1730926334971,0.03974528,2670.1,2669.8,0.07490393]
[1730926335171,0.787,2670.5,2670.1,3.0]
[1730926335375,0.787,2670.5,2669.7,1.33475484]
[1730926335376,0.03969011,2670.0,2669.7,1.33475484]
[1730926335675,0.09362983,2670.4,2669.7,1.33475484]
[1730926335878,0.09362983,2670.4,2670.1,3.0]
[1730926336077,0.09362983,2670.4,2669.7,0.8087]
[1730926336937,0.09362983,2670.4,2669.8,0.55]
[1730926337143,0.8263,2670.8,2670.1,0.7545]
[1730926337374,0.8263,2670.8,2670.2,0.07489074]
[1730926337375,0.8263,2670.7,2670.2,0.07489074]
[1730926337584,0.91991342,2670.7,2669.9,0.07489697]
[1730926338282,0.91991342,2670.7,2670.5,3.0]
[1730926338593,0.8263,2670.7,2670.6,3.0]
[1730926338787,0.8263,2670.7,2670.0,0.7545]
[1730926339142,0.8263,2670.7,2670.6,3.0]
[1730926340167,0.8263,2670.7,2670.0,0.7545]
[1730926340351,0.8263,2670.7,2669.7,0.49272151]
[1730926340352,0.8263,2670.7,2669.7,1.24722151]
[1730926341049,0.09362382,2670.6,2669.7,1.24722151]
[1730926341255,0.13381974,2670.6,2669.7,1.24722151]
[1730926343688,0.13381974,2670.6,2669.8,0.074899]
[1730926343850,0.13381974,2670.6,2669.7,1.24722151]
[1730926343851,0.04019592,2670.6,2669.9,0.55]
[1730926344070,0.04019592,2670.6,2670.1,0.55]
[1730926344385,0.04019592,2670.6,2670.2,0.07488892]
[1730926344592,0.04019592,2670.6,2670.3,0.55]
[1730926344789,0.8263,2670.9,2670.8,3.0]
[1730926345296,0.8263,2670.9,2670.3,0.55]
[1730926345895,0.8263,2670.9,2670.8,3.0]
[1730926346303,0.8263,2670.9,2669.9,1.24722151]
[1730926346592,0.8263,2670.9,2669.9,0.7545]
[1730926346593,4.19117479,2670.8,2669.9,0.7545]
[1730926347093,0.8263,2670.7,2669.9,0.7545]
[1730926347465,0.8263,2670.7,2669.7,0.7545]
[1730926347821,0.8263,2670.7,2669.8,0.55]
[1730926348373,0.09362117,2670.6,2669.8,0.55]
[1730926348577,0.91992117,2670.7,2669.9,0.07489693]
[1730926348899,0.8263,2670.7,2670.5,3.0]
[1730926349192,0.8263,2670.7,2670.0,0.55]
[1730926349757,0.8263,2670.7,2670.5,3.0]
[1730926349959,0.8263,2670.7,2670.2,0.8102]
[1730926350266,0.7762,2671.0,2670.2,0.8102]
[1730926350478,0.04308159,2670.6,2670.2,0.8102]
[1730926350668,0.7762,2671.0,2670.3,0.62488636]
[1730926350872,0.7804,2671.4,2670.4,0.19278079]
[1730926351069,0.7804,2671.4,2671.3,3.0]
[1730926351276,0.0935973,2671.7,2671.3,3.0]
[1730926351277,0.8739973,2671.7,2671.3,3.0]
[1730926351494,0.7804,2671.7,2671.4,3.0]
[1730926352294,0.7804,2671.7,2671.0,0.07486777]
[1730926352795,0.59074216,2671.6,2671.4,3.0]
[1730926353417,0.09358294,2671.5,2670.7,0.55]
[1730926353567,0.09358294,2671.5,2671.4,3.0]
[1730926354212,0.09358294,2671.5,2670.8,0.07486946]
[1730926354510,0.09358294,2671.5,2671.4,3.0]
[1730926354681,0.5907443,2671.6,2671.4,3.0]
[1730926355009,0.59074429,2671.6,2671.4,3.0]
[1730926355210,0.09358681,2671.5,2671.4,3.0]
[1730926355512,0.59074428,2671.6,2671.4,3.0]
[1730926356502,0.59074428,2671.6,2670.8,0.07486944]
[1730926356681,0.09358986,2671.5,2671.4,3.0]
[1730926357513,0.59074426,2671.6,2671.4,3.0]
[1730926358408,0.09358677,2671.5,2671.4,3.0]
[1730926358794,0.05027191,2671.5,2670.8,0.07486941]
[1730926359111,0.05027191,2671.5,2671.1,0.8042]
[1730926359413,0.8277,2672.1,2671.9,3.0]
[1730926360210,0.8277,2672.1,2671.3,0.55]
[1730926360512,0.8277,2672.1,2671.9,3.0]
[1730926361291,0.09356694,2672.0,2671.9,3.0]
[1730926361604,0.09356694,2672.0,2671.3,0.55]
[1730926361806,0.09356694,2672.0,2671.9,3.0]
[1730926362402,0.92126693,2672.1,2671.3,0.55]
[1730926362708,0.92126693,2672.1,2671.9,3.0]
[1730926362898,1.4325111,2672.1,2671.3,0.55]
[1730926363099,0.92126693,2672.1,2671.9,3.0]
[1730926363305,0.8277,2672.1,2671.9,3.0]
[1730926363607,0.92126694,2672.1,2671.9,3.0]
[1730926364614,0.8277,2672.1,2671.9,3.0]
[1730926366412,0.8277,2672.1,2671.4,0.07485354]
[1730926366645,0.8277,2672.1,2671.9,3.0]
[1730926366974,0.7727,2672.4,2671.9,3.0]
[1730926367213,0.7727,2672.4,2671.7,0.7782]
[1730926367214,1.26908748,2672.4,2671.7,0.7782]
[1730926367577,1.26908748,2672.4,2672.0,3.0]
[1730926367886,0.09356162,2672.3,2672.0,3.0]
[1730926368599,0.09356162,2672.3,2671.7,0.7782]
[1730926369114,0.09356162,2672.3,2672.0,3.0]
[1730926369483,3.69399375,2672.3,2672.0,3.0]
[1730926369703,4.19030187,2672.3,2672.0,3.0]
[1730926370103,4.19030187,2672.3,2671.7,0.7782]
[1730926370416,3.60043213,2672.1,2671.4,0.8177]
[1730926370576,4.36463213,2672.1,2672.0,3.0]
[1730926370776,4.85072616,2672.1,2672.0,3.0]
[1730926371321,4.91370273,2672.1,2672.0,3.0]
[1730926371470,4.91370273,2672.1,2671.4,0.8177]
[1730926371672,4.91370273,2672.1,2672.0,3.0]
[1730926372097,4.91370273,2672.1,2671.4,0.8177]
[1730926372274,4.91370273,2672.1,2672.0,3.0]
[1730926373373,4.91370273,2672.1,2671.4,0.8177]
[1730926373682,4.91370273,2672.1,2671.6,1.3682]
[1730926373683,0.06297657,2672.1,2671.6,1.3682]
[1730926373916,0.06297657,2672.1,2671.7,0.49272151]
[1730926374133,0.09355353,2672.5,2672.1,3.0]
[1730926374306,0.06285281,2672.0,2671.7,0.49272151]
[1730926374501,0.06285281,2672.0,2671.8,0.07484299]
[1730926374706,3.69398566,2672.5,2671.9,0.61516317]
[1730926375443,3.69398566,2672.5,2672.0,0.07484251]
[1730926375592,3.69398566,2672.5,2672.0,0.69000568]
[1730926375793,3.69398566,2672.5,2672.0,0.07484251]
[1730926376034,3.69398566,2672.5,2672.1,0.61516317]
[1730926377038,4.14000423,2672.5,2672.1,0.61516317]
[1730926377192,4.14000423,2672.5,2671.8,0.65128817]
[1730926379008,4.14000423,2672.5,2671.8,1.1717757]
[1730926379903,0.7662,2672.6,2672.3,3.0]
[1730926380120,3.60043213,2673.1,2672.4,0.65128817]
[1730926380121,0.7968,2672.9,2672.4,0.65128817]
[1730926380329,0.09354295,2672.8,2672.4,0.65128817]
[1730926380699,0.09354295,2672.8,2672.5,3.0]
[1730926381495,3.69397508,2672.8,2672.5,3.0]
[1730926381711,4.14305259,2672.8,2672.5,3.0]
[1730926382133,4.14305259,2672.8,2672.4,0.65128817]
[1730926382321,4.14305259,2672.8,2672.5,3.0]
[1730926383340,4.14305259,2672.8,2672.4,0.65128817]
[1730926383724,4.14305259,2672.8,2672.5,3.0]
[1730926383925,4.14305259,2672.8,2672.4,0.65128817]
[1730926384263,4.14305259,2672.8,2672.5,3.0]
[1730926384750,4.14305259,2672.8,2672.4,0.65128817]
[1730926384915,3.69397508,2672.8,2672.5,3.0]
[1730926385645,0.09354295,2672.8,2672.2,0.68685568]
[1730926385955,0.09354295,2672.8,2672.3,0.52048753]
[1730926386103,0.8217,2673.6,2672.5,0.55]
[1730926386309,0.09352082,2673.5,2672.9,0.8059]
[1730926386506,0.1683671,2673.5,2673.0,0.6120208]
[1730926386737,0.13718115,2673.5,2673.0,0.6120208]
[1730926387505,0.04366033,2673.5,2673.0,0.68683744]
[1730926388124,0.8194,2673.7,2673.0,0.68683744]
[1730926388345,0.04046161,2673.4,2673.0,1.20732497]
[1730926388546,1.27295664,2673.9,2673.0,1.13250833]
[1730926388745,0.04041381,2673.3,2673.0,1.13250833]
[1730926388913,0.91291343,2673.9,2673.1,0.19384083]
[1730926389119,0.04033772,2673.2,2673.1,0.80586163]
[1730926389321,0.91291343,2673.9,2673.1,0.80586163]
[1730926389553,0.04033772,2673.2,2673.1,0.80586163]
[1730926389744,0.91291343,2673.9,2673.1,0.80586163]
[1730926389941,0.03749148,2673.2,2673.1,0.80586163]
[1730926390264,0.91291343,2673.9,2673.1,0.88067061]
[1730926390442,0.91291343,2673.9,2673.2,0.6120208]
[1730926390642,0.03791534,2673.8,2673.5,3.0]
[1730926390846,0.03791534,2673.8,2673.4,0.7787]
[1730926391031,0.03791534,2673.8,2673.4,1.58932252]
[1730926391924,0.03791534,2673.8,2673.5,0.6120208]
[1730926392124,0.89500408,2674.2,2673.5,0.68681905]
[1730926392337,0.03784471,2673.7,2673.5,0.6120208]
[1730926392535,0.89500408,2674.2,2673.5,0.82300181]
[1730926392745,0.03555069,2673.6,2673.5,0.82300181]
[1730926393025,0.89500408,2674.2,2673.5,0.82300181]
[1730926393368,0.03588027,2674.1,2673.5,0.82300181]
[1730926393869,0.03588027,2674.1,2673.5,0.6120208]
[1730926394157,0.03588027,2674.1,2673.9,3.0]
[1730926394551,0.03588027,2674.1,2673.5,0.6120208]
[1730926395128,0.03588027,2674.1,2673.9,3.0]
[1730926395529,0.03588027,2674.1,2673.5,0.6120208]
[1730926395751,0.03588027,2674.1,2673.9,3.0]
[1730926397560,0.03588027,2674.1,2673.5,0.6120208]
[1730926398156,0.03588027,2674.1,2673.9,3.0]
[1730926398361,0.48901192,2674.1,2673.9,3.0]
[1730926398563,0.09349929,2674.0,2673.9,3.0]
[1730926398774,0.12933544,2674.0,2673.9,3.0]
[1730926399130,0.12933544,2674.0,2673.5,0.6120208]
[1730926399365,0.12933544,2674.0,2673.9,3.0]
[1730926399669,0.05596129,2674.0,2673.5,0.6120208]
[1730926400061,0.05596129,2674.0,2673.9,3.0]
[1730926401145,0.05596129,2674.0,2673.5,0.6120208]
[1730926401772,0.05596129,2674.0,2673.9,3.0]
[1730926402525,0.05596129,2674.0,2673.5,0.6120208]
[1730926403230,0.05596129,2674.0,2673.9,3.0]
[1730926403672,0.05596129,2674.0,2673.6,0.07479941]
[1730926403884,0.05596129,2674.0,2673.9,0.6120208]
[1730926404172,0.86748589,2674.5,2673.9,1.3758208]
[1730926404374,0.0505662,2674.0,2673.9,0.9609097]
[1730926404557,0.05096159,2674.4,2674.0,0.5614546]
[1730926404740,0.86748589,2674.5,2674.0,0.5614546]
[1730926405589,0.09348589,2674.5,2674.0,0.5614546]
[1730926405738,3.60043213,2674.6,2674.1,0.07478873]
[1730926406242,3.60043213,2674.6,2674.1,0.68259568]
[1730926406942,3.60043213,2674.6,2674.1,0.60780695]
[1730926408754,0.09347761,2674.5,2674.1,0.60780695]
[1730926409137,0.54026858,2674.5,2674.1,0.60780695]
[1730926409346,3.60043213,2674.2,2673.4,1.07048753]
[1730926409686,4.40883213,2674.2,2673.7,0.60780695]
[1730926410256,0.8084,2674.4,2673.8,1.29508753]
[1730926410580,0.90189059,2674.4,2673.9,0.60780695]
[1730926412756,0.01,2675.1,2674.0,0.07479249]
[1730926412757,0.8084,2674.7,2674.0,0.07479249]
[1730926412959,0.09348291,2674.7,2674.1,1.38240695]
[1730926413159,0.8084,2675.0,2674.2,0.59526995]
[1730926413375,0.0934731,2674.9,2674.3,0.60780695]
[1730926413685,0.90186556,2675.0,2674.4,0.59525998]
[1730926413897,0.8084,2675.7,2674.5,1.38240695]
[1730926414185,3.60043213,2675.5,2674.6,4.34301401]
[1730926414493,0.09345151,2675.4,2674.7,0.60780695]
[1730926414790,3.60043213,2675.5,2674.8,0.0747612]
[1730926414945,0.0934515,2675.4,2674.8,1.1776504]
[1730926415147,0.0934515,2675.4,2674.8,1.1028892]
[1730926415347,0.0934515,2675.4,2674.8,0.60780695]
[1730926415549,0.0934515,2675.4,2675.0,3.0]
[1730926416188,0.0934515,2675.4,2674.8,0.68257126]
[1730926416347,0.0934515,2675.4,2675.0,3.0]
[1730926416547,0.0934515,2675.4,2674.9,0.60780695]
[1730926416849,0.0934515,2675.4,2675.0,3.0]
[1730926417053,0.0934515,2675.4,2674.9,0.60780695]
[1730926417254,4.42433213,2675.2,2674.9,0.60780695]
[1730926417455,0.09345793,2675.1,2674.5,1.38240695]
[1730926417660,0.09345793,2675.1,2674.6,0.60780695]
[1730926418352,4.42433213,2675.2,2674.6,1.12829448]
[1730926418556,4.42433213,2675.2,2674.7,1.12829448]
[1730926418967,0.09346271,2675.1,2674.7,1.12829448]
[1730926419905,4.42433213,2675.2,2674.7,1.12829448]
[1730926420279,4.42433213,2675.2,2674.7,1.31858393]
[1730926420499,0.8239,2675.4,2674.7,1.31858393]
[1730926420776,0.09345782,2675.3,2674.7,1.31858393]
[1730926422370,0.8239,2675.4,2674.8,0.07476622]
[1730926422569,0.91735327,2675.7,2675.4,3.0]
[1730926422805,0.91735327,2675.7,2674.9,1.3471]
[1730926422806,0.8239,2675.7,2675.5,1.19937317]
[1730926422981,0.91734179,2675.7,2675.5,1.19937317]
[1730926424101,1.36911918,2675.7,2675.5,4.19937317]
[1730926424623,1.36911918,2675.7,2675.5,1.19937317]
[1730926424915,0.91734179,2675.7,2675.5,1.19937317]
[1730926425079,0.09344293,2675.6,2675.2,0.6431792]
[1730926425790,3.69387506,2675.6,2675.2,0.6431792]
[1730926426415,3.69387506,2675.6,2675.0,0.64180779]
[1730926426416,0.7743,2675.5,2675.0,0.64180779]
[1730926426574,0.09345633,2675.4,2675.0,0.64180779]
[1730926429082,0.7743,2675.2,2674.5,0.64180779]
[1730926429283,0.093465,2675.1,2674.5,0.64180779]
[1730926429494,0.867765,2675.2,2674.6,0.56901253]
[1730926429698,0.7743,2675.4,2674.7,0.71657369]
[1730926429883,3.60043213,2675.6,2674.8,1.36261253]
[1730926429884,4.37473213,2675.6,2674.8,1.36261253]
[1730926430085,0.7743,2675.6,2674.9,0.20791862]
[1730926430611,0.7743,2675.6,2675.0,0.07476249]
[1730926430916,0.7743,2675.6,2674.9,1.36933878]
[1730926432988,0.7743,2675.6,2675.0,0.66716617]
[1730926433207,0.7743,2675.6,2675.0,0.81617736]
[1730926436695,3.60043213,2675.3,2675.0,3.0]
[1730926436891,0.09345836,2675.2,2675.0,3.0]
[1730926437420,0.7528,2675.1,2674.9,3.0]
[1730926437619,0.7528,2675.1,2674.7,0.59240763]
[1730926437791,0.09346181,2675.0,2674.7,0.59240763]
[1730926438501,0.09346181,2675.0,2674.5,0.56901253]
[1730926438502,3.69389394,2675.0,2674.5,0.56901253]
[1730926438815,3.69389394,2675.0,2674.2,0.8285]
[1730926438816,3.69389394,2675.0,2674.3,0.59240763]
[1730926439384,3.69389394,2675.0,2674.3,1.16142016]
[1730926441026,0.7969,2674.6,2674.3,1.16142016]
[1730926441238,1.33010993,2674.6,2674.3,1.16142016]
[1730926441401,0.7969,2674.6,2674.3,1.16142016]
[1730926442122,0.89037906,2674.6,2674.3,0.59240763]
[1730926442841,3.60043213,2674.7,2674.3,1.16142016]
[1730926442987,0.09348328,2675.1,2674.4,1.40169045]
[1730926442988,0.801,2675.1,2674.4,1.40169045]
[1730926443293,0.09345618,2675.2,2674.5,0.79181744]
[1730926443494,0.09345618,2675.2,2674.5,1.36082997]
[1730926444093,0.09345618,2675.2,2674.6,0.56901253]
[1730926444297,0.09345618,2675.2,2674.6,1.16142016]
[1730926444624,0.09345618,2675.2,2675.1,3.0]
[1730926444988,0.09345618,2675.2,2674.5,0.19940981]
[1730926445198,0.09345618,2675.2,2674.5,0.55]
[1730926445524,0.09345618,2675.2,2674.9,3.0]
[1730926445716,0.09345618,2675.2,2674.5,0.55]
[1730926446231,0.09345618,2675.2,2674.9,3.0]
[1730926446442,0.09345618,2675.2,2674.5,0.55]
[1730926446753,0.09345618,2675.2,2674.9,3.0]
[1730926447715,0.09345618,2675.2,2674.7,3.0]
[1730926448060,4.40143213,2675.3,2674.8,0.50433891]
[1730926448258,4.40143213,2675.3,2675.0,3.0]
[1730926448466,4.40143213,2675.3,2674.8,1.02931062]
[1730926448622,2.31813839,2675.7,2674.9,0.85965858]
[1730926448623,0.85925652,2675.6,2674.9,0.85965858]
[1730926448818,0.85925652,2675.6,2674.9,1.8889692]
[1730926449125,0.7658,2675.6,2675.0,1.02931062]
[1730926449332,3.69388036,2675.7,2675.4,3.0]
[1730926449546,3.69388036,2675.7,2675.1,0.18889692]
[1730926450038,3.69388036,2675.7,2675.4,3.0]
[1730926450505,3.60043213,2675.7,2675.4,3.0]
[1730926451953,3.60043213,2675.7,2675.1,0.18889692]
[1730926452153,3.60043213,2675.7,2675.4,3.0]
[1730926452572,3.60043213,2675.7,2675.1,0.71386863]
[1730926453141,3.60043213,2675.7,2675.4,3.0]
[1730926453450,6.79840581,2676.0,2675.5,3.0]
[1730926453647,2.31813839,2675.9,2675.5,3.0]
[1730926453879,6.79840581,2676.0,2675.4,0.763]
[1730926454183,6.80310853,2676.0,2675.5,3.0]
[1730926454336,6.80310853,2676.0,2675.4,0.763]
[1730926454539,6.80310853,2676.0,2675.5,3.0]
[1730926454785,2.32284111,2675.9,2675.6,0.07474575]
[1730926454942,2.32284111,2676.1,2675.9,3.0]
[1730926455137,3.60043213,2676.1,2675.9,3.0]
[1730926455342,3.69385429,2676.1,2675.5,0.55]
[1730926455563,3.69385613,2676.1,2675.4,0.763]
[1730926458044,3.60043213,2676.1,2675.5,0.55]
[1730926458247,3.69385149,2676.1,2675.4,0.763]
[1730926458952,3.60043213,2676.1,2675.9,3.0]
[1730926459457,3.60043213,2676.1,2675.4,1.28797171]
[1730926459645,3.60043213,2676.1,2675.9,3.0]
[1730926460167,3.60043213,2676.1,2675.4,1.28797171]
[1730926460581,3.11155257,2676.3,2675.9,3.0]
[1730926460801,3.11155257,2676.3,2675.4,1.79231062]
[1730926461683,0.7864,2676.3,2675.6,0.7526]
[1730926461884,0.7864,2676.3,2675.7,0.24066484]
[1730926463299,3.60043213,2676.4,2675.7,0.24066484]
[1730926463300,3.69384886,2676.4,2675.8,0.07473338]
[1730926463596,0.8011,2676.5,2675.8,1.65404395]
[1730926463794,5.92248818,2676.7,2675.9,4.28397171]
[1730926464088,3.07955605,2676.9,2676.0,0.55]
[1730926464308,0.85089759,2676.9,2676.1,0.759]
[1730926464514,0.85089759,2676.9,2676.5,3.0]
[1730926464812,2.5917,2678.5,2677.0,0.7943]
[1730926464813,2.17052945,2678.0,2677.0,0.7943]
[1730926464993,0.80109486,2678.4,2677.0,0.7943]
[1730926464994,1.96345483,2678.2,2678.0,2.92521433]
[1730926465216,0.7552,2679.4,2678.0,2.92521433]
[1730926465217,1.492769,2679.3,2678.3,1.96345483]
[1730926465355,0.7505,2680.5,2678.7,0.7389]
[1730926465559,0.7505,2680.5,2678.9,3.01]
[1730926465560,3.60043213,2680.3,2678.9,3.01]
[1730926465805,3.60043213,2680.3,2679.4,0.01]
[1730926465985,0.06186749,2680.2,2679.5,0.7631]
[1730926466170,0.06186749,2680.2,2679.9,0.01]
[1730926466367,0.1289164,2681.2,2679.9,0.01]
[1730926466368,0.1289164,2681.2,2680.1,0.01]
[1730926466702,0.05597706,2681.1,2680.7,0.01]
[1730926466932,0.831,2682.1,2680.8,0.01]
[1730926467204,0.831,2682.1,2681.1,0.01]
[1730926467369,4.16049017,2681.8,2681.4,0.01]
[1730926467579,0.06167303,2681.7,2681.2,0.01]
[1730926467790,4.99149017,2682.1,2681.0,0.01]
[1730926467982,0.05514809,2682.0,2681.0,0.01]
[1730926468203,4.16049017,2681.7,2680.9,0.01]
[1730926468388,0.06155015,2681.6,2680.9,0.01]
[1730926468616,4.16049017,2681.3,2680.9,0.01]
[1730926468803,0.01,2684.0,2682.0,0.01]
[1730926469002,5.05314068,2685.0,2682.3,3.0]
[1730926469003,0.7728,2683.5,2682.3,3.0]
[1730926469355,4.16049017,2682.5,2681.9,0.01]
[1730926469487,4.57653919,2682.5,2681.9,3.01]
[1730926469813,4.16049017,2682.1,2681.7,0.7736]
[1730926470016,4.16049017,2682.1,2681.7,0.01]
[1730926470224,4.16049017,2682.1,2681.5,0.01]
[1730926470403,0.41604902,2682.5,2681.5,0.01]
[1730926470404,4.16049017,2681.7,2681.5,0.01]
[1730926470743,4.16049017,2681.7,2681.5,3.0]
[1730926471024,4.16049017,2681.6,2681.1,0.01]
[1730926472236,4.16049017,2681.6,2681.3,0.01]
[1730926473209,0.7866,2682.6,2681.5,0.01]
[1730926473394,4.16049017,2681.8,2681.5,0.01]
[1730926474440,4.16049017,2682.3,2681.7,0.01]
[1730926474595,4.16049017,2682.5,2682.0,0.01]
[1730926474797,0.41604902,2682.4,2682.0,0.01]
[1730926475028,4.16049017,2682.1,2682.0,0.01]
[1730926475242,4.16049017,2682.1,2681.7,0.60789251]
[1730926475529,4.16049017,2682.1,2681.6,0.01]
[1730926476098,4.16049017,2682.1,2681.8,3.0]
[1730926476299,4.57653919,2682.1,2681.6,0.01]
[1730926476516,4.57653919,2682.1,2681.8,3.0]
[1730926476720,4.16049017,2681.7,2681.6,0.01]
[1730926476924,4.16049017,2681.7,2681.4,0.787]
[1730926477107,4.16049017,2681.7,2681.6,0.01]
[1730926477320,4.16049017,2681.7,2681.4,1.39489251]
[1730926477496,4.16049017,2681.7,2681.6,0.01]
[1730926477693,4.16049017,2681.7,2681.6,3.0]
[1730926477930,4.16049017,2681.7,2681.6,0.01]
[1730926478139,0.01,2682.7,2681.6,0.62789251]
[1730926478355,4.16049017,2682.2,2681.6,0.62789251]
[1730926478635,4.16049017,2682.2,2681.6,0.02]
[1730926478943,4.16049017,2681.8,2681.6,0.02]
[1730926479235,4.16049017,2681.8,2681.6,0.01]
[1730926479419,4.57653919,2681.8,2681.6,0.01]
[1730926481297,4.57653919,2681.8,2680.5,0.8162]
[1730926481298,0.8139,2681.7,2680.6,0.01]
[1730926481516,4.16049017,2680.7,2680.6,0.01]
[1730926482103,4.16049017,2680.7,2680.1,0.7572]
[1730926482627,4.16049017,2680.7,2680.1,0.7672]
[1730926482797,4.57653919,2680.7,2680.1,0.7672]
[1730926483299,4.16049017,2680.7,2680.5,0.01]
[1730926485908,4.16049017,2680.7,2680.3,3.01]
[1730926486127,4.16049017,2680.7,2680.1,0.7572]
[1730926486128,0.41604902,2681.8,2681.4,0.01]
[1730926486333,0.8145,2682.1,2681.2,3.01]
[1730926486633,4.16049017,2681.3,2681.0,0.01]
[1730926486806,4.16049017,2681.3,2681.2,0.01]
[1730926487008,4.16049017,2681.3,2681.0,3.0]
[1730926487009,4.16049017,2681.3,2681.0,0.01]
[1730926487248,4.16049017,2681.8,2681.2,0.01]
[1730926487534,4.16049017,2681.4,2681.2,0.01]
[1730926488102,4.16049017,2681.4,2681.0,3.01]
[1730926488693,0.01,2682.2,2681.2,0.01]
[1730926488898,4.16049017,2681.5,2681.2,0.01]
[1730926489132,4.16049017,2681.5,2681.0,0.7553]
[1730926489133,0.01,2682.2,2681.0,0.7653]
[1730926489363,4.16049017,2681.4,2681.0,0.7653]
[1730926489500,4.16049017,2681.4,2681.2,0.01]
[1730926490238,4.16049017,2681.4,2681.0,3.7653]
[1730926490442,4.57653919,2681.4,2680.6,0.7884]
[1730926490753,4.16049017,2680.9,2680.7,0.01]
[1730926490896,4.16049017,2680.9,2680.6,0.7884]
[1730926491259,4.16049017,2681.3,2680.8,0.01]
[1730926491462,4.61814409,2681.3,2680.8,0.01]
[1730926491660,4.61814409,2681.3,2681.0,0.01]
[1730926491873,4.16049017,2681.3,2681.0,0.01]
[1730926492109,4.16049017,2681.3,2680.8,3.01]
[1730926492310,4.57653919,2681.3,2680.7,0.01]
[1730926492483,4.16049017,2680.9,2680.7,0.01]
[1730926493764,4.16049017,2680.9,2680.2,0.82]
[1730926493980,4.16049017,2680.5,2680.3,0.01]
[1730926495533,4.16049017,2680.9,2680.3,0.01]
[1730926496527,4.11317807,2680.9,2680.3,0.01]
[1730926497438,4.52449588,2680.9,2680.3,0.01]
[1730926497594,4.16049017,2680.4,2680.3,0.01]
[1730926497790,4.16049017,2680.4,2680.1,0.01]
[1730926497988,4.16049017,2680.4,2680.2,3.0]
[1730926498211,4.16049017,2680.8,2680.6,0.01]
[1730926498618,4.16049017,2680.8,2680.2,3.0]
[1730926498619,4.16049017,2680.8,2680.4,0.01]
[1730926498791,4.61767097,2680.8,2680.2,3.01]
[1730926498995,4.16049017,2680.4,2680.2,3.01]
[1730926499289,4.16049017,2680.8,2680.5,0.01]
[1730926500097,4.16049017,2680.8,2680.5,3.01]